fUST/lending_fUST_20250630
["ID","MTS","AMOUNT","RATE_DAILY","PERIOD"]
[368576301,1751213446039,-460.0,0.00018684,2]
[368576302,1751213446049,-460.0,0.00018684,2]
[368576303,1751213446058,-1257.18,0.00018684,2]
[368576304,1751213446068,-460.0,0.00018684,2]
[368576305,1751213446077,-460.0,0.00018684,2]
[368576306,1751213446087,-460.0,0.00018684,2]
[368576307,1751213446097,-460.0,0.00018684,2]
[368576308,1751213446106,-460.0,0.00018684,2]
[368576309,1751213446116,-460.0,0.00018684,2]
[368576310,1751213446125,-997.24,0.00018684,2]
[368576311,1751213446135,-460.0,0.00018684,2]
[368576312,1751213446144,-696.71,0.00018684,2]
[368576313,1751213446153,-460.0,0.00018684,2]
[368576314,1751213446163,-1514.83,0.00018684,2]
[368576315,1751213446172,-460.0,0.00018684,2]
[368576316,1751213446182,-460.0,0.00018684,2]
[368576317,1751213446192,-460.0,0.00018684,2]
[368576318,1751213446201,-704.72,0.00018684,2]
[368576319,1751213446212,-460.0,0.00018684,2]
[368576320,1751213446222,-300.70797096,0.00018684,2]
[368576321,1751213446231,-460.0,0.00018685,2]
[368576322,1751213446241,-460.0,0.00018685,2]
[368576323,1751213446250,-460.0,0.00018685,2]
[368576324,1751213446260,-460.0,0.00018685,2]
[368576325,1751213446269,-1715.34,0.00018685,2]
[368576326,1751213446279,-753.79,0.00018685,2]
[368576327,1751213446288,-594.48,0.00018685,2]
[368576328,1751213446298,-860.14,0.00018685,2]
[368576329,1751213446308,-460.0,0.00018685,2]
[368576330,1751213446318,-1152.83,0.00018685,2]
[368576331,1751213446327,-6011.46,0.00018685,2]
[368576332,1751213446337,-543.66,0.00018685,2]
[368576333,1751213446347,-344.16786032,0.00018686,2]
[368576334,1751213446356,-460.0,0.00018686,2]
[368576335,1751213446367,-460.0,0.00018686,2]
[368576336,1751213446378,-460.0,0.00018686,2]
[368576337,1751213446387,-460.0,0.00018686,2]
[368576338,1751213446397,-460.0,0.00018689,2]
[368576339,1751213446406,-460.0,0.00018689,2]
[368576340,1751213446416,-566.23,0.00018689,2]
[368576341,1751213446426,-460.0,0.00018689,2]
[368576342,1751213446436,-460.0,0.00018689,2]
[368576343,1751213446445,-460.0,0.00018689,2]
[368576344,1751213446455,-460.0,0.00018689,2]
[368576345,1751213446465,-513.98,0.00018689,2]
[368576346,1751213446475,-497.57,0.00018689,2]
[368576347,1751213446485,-460.0,0.00018689,2]
[368576348,1751213446495,-460.0,0.00018689,2]
[368576349,1751213446504,-595.58324707,0.00018689,2]
[368576350,1751213446514,-460.0,0.00018689,2]
[368576351,1751213446523,-460.0,0.00018689,2]
[368576352,1751213446532,-460.0,0.00018689,2]
[368576353,1751213446542,-460.0,0.00018689,2]
[368576354,1751213446552,-460.0,0.00018689,2]
[368576355,1751213446562,-638.1,0.00018689,2]
[368576356,1751213446572,-460.0,0.00018689,2]
[368576357,1751213446581,-460.0,0.00018689,2]
[368576358,1751213446590,-913.1,0.00018689,2]
[368576359,1751213446599,-460.0,0.00018689,2]
[368576360,1751213446609,-460.0,0.00018689,2]
[368576361,1751213446618,-460.0,0.00018689,2]
[368576362,1751213446628,-472.55,0.00018689,2]
[368576363,1751213446637,-508.17363053,0.00018689,2]
[368576364,1751213446647,-934.56,0.00018689,2]
[368576365,1751213446656,-460.0,0.00018689,2]
[368576366,1751213446666,-460.0,0.00018689,2]
[368576367,1751213446675,-460.0,0.00018689,2]
[368576368,1751213446684,-460.0,0.00018689,2]
[368576369,1751213446694,-460.0,0.00018689,2]
[368576370,1751213446703,-994.93,0.00018689,2]
[368576371,1751213446712,-788.47,0.00018689,2]
[368576372,1751213446722,-535.69,0.00018689,2]
[368576373,1751213446731,-460.0,0.00018689,2]
[368576374,1751213446740,-720.09,0.00018689,2]
[368576375,1751213446750,-460.0,0.00018689,2]
[368576376,1751213446759,-460.0,0.00018689,2]
[368576377,1751213446770,-732.67,0.00018689,2]
[368576378,1751213446779,-460.0,0.00018689,2]
[368576379,1751213446788,-460.0,0.00018689,2]
[368576380,1751213446798,-460.0,0.00018689,2]
[368576381,1751213446808,-3943.89,0.0001869,2]
[368576382,1751213446817,-749.97,0.0001869,2]
[368576383,1751213446827,-2273.88,0.0001869,2]
[368576384,1751213446836,-1592.72,0.0001869,2]
[368576385,1751213446846,-460.0,0.0001869,2]
[368576386,1751213446855,-1393.05,0.0001869,2]
[368576387,1751213446864,-6858.32,0.0001869,2]
[368576388,1751213446874,-2299.91,0.0001869,2]
[368576389,1751213446884,-1649.67,0.0001869,2]
[368576390,1751213446896,-460.0,0.0001869,2]
[368576391,1751213446905,-460.0,0.0001869,2]
[368576392,1751213446914,-460.0,0.00018691,2]
[368576393,1751213446924,-460.0,0.00018691,2]
[368576394,1751213446934,-258.91941248,0.00018691,2]
[368576395,1751213446944,-430.05016895,0.00018691,2]
[368576396,1751213446954,-591.61564191,0.00018691,2]
[368576397,1751213446964,-460.0,0.00018691,2]
[368576398,1751213446973,-460.0,0.00018691,2]
[368576399,1751213446983,-460.0,0.00018691,2]
[368576400,1751213446993,-460.0,0.00018691,2]
[368576401,1751213447003,-460.0,0.00018691,2]
[368576402,1751213447012,-460.0,0.00018691,2]
[368576403,1751213447023,-460.0,0.00018691,2]
[368576404,1751213447033,-460.0,0.00018691,2]
[368576405,1751213447043,-460.0,0.00018691,2]
[368576406,1751213447053,-222.23783879,0.00018691,2]
[368576407,1751213447062,-460.0,0.00018691,2]
[368576408,1751213447072,-582.6206452,0.00018691,2]
[368576409,1751213447081,-460.0,0.00018691,2]
[368576410,1751213447091,-359.17127177,0.00018691,2]
[368576411,1751213447101,-460.0,0.000187,2]
[368576412,1751213447110,-460.0,0.000187,2]
[368576413,1751213447120,-460.0,0.000187,2]
[368576414,1751213447130,-460.0,0.000187,2]
[368576415,1751213447140,-151.0,0.000187,2]
[368576416,1751213447150,-460.0,0.000187,2]
[368576417,1751213447160,-954.05,0.000187,2]
[368576418,1751213447170,-460.0,0.000187,2]
[368576419,1751213447180,-460.0,0.000187,2]
[368576420,1751213447190,-460.0,0.000187,2]
[368576421,1751213447200,-460.0,0.000187,2]
[368576422,1751213447209,-844.34,0.000187,2]
[368576423,1751213447219,-460.0,0.000187,2]
[368576424,1751213447229,-1863.26,0.000187,2]
[368576425,1751213447239,-460.0,0.000187,2]
[368576426,1751213447248,-270.27266673,0.000187,2]
[368576427,1751213447258,-1075.67,0.000187,2]
[368576428,1751213447267,-460.0,0.000187,2]
[368576429,1751213447277,-282.69845533,0.000187,2]
[368576430,1751213447287,-1321.87,0.000187,2]
[368576431,1751213447296,-460.0,0.000187,2]
[368576432,1751213447306,-2266.93,0.000187,2]
[368576433,1751213447315,-1689.29,0.000187,2]
[368576434,1751213447325,-460.0,0.000187,2]
[368576435,1751213447334,-632.62,0.000187,2]
[368576436,1751213447344,-460.0,0.000187,2]
[368576437,1751213447354,-460.0,0.000187,2]
[368576438,1751213447364,-460.0,0.00018702,2]
[368576439,1751213447374,-284.98887482,0.00018702,2]
[368576440,1751213447383,-460.0,0.00018702,2]
[368576441,1751213447393,-460.0,0.00018702,2]
[368576442,1751213447402,-2416.46,0.00018702,2]
[368576443,1751213447412,-460.0,0.00018702,2]
[368576444,1751213447422,-274.57837122,0.00018702,2]
[368576445,1751213447431,-460.0,0.00018702,2]
[368576446,1751213447441,-460.0,0.00018702,2]
[368576447,1751213447451,-460.0,0.00018702,2]
[368576448,1751213447461,-460.0,0.00018702,2]
[368576449,1751213447470,-460.0,0.00018702,2]
[368576450,1751213447480,-460.0,0.00018702,2]
[368576451,1751213447490,-460.0,0.00018702,2]
[368576452,1751213447499,-460.0,0.00018702,2]
[368576453,1751213447508,-460.0,0.00018702,2]
[368576454,1751213447517,-151.0,0.00018704,2]
[368576455,1751213447527,-151.0,0.00018704,2]
[368576456,1751213447536,-151.0,0.00018704,2]
[368576457,1751213447545,-151.0,0.00018704,2]
[368576458,1751213447554,-151.81590092,0.00018704,2]
[368576459,1751213447564,-151.45498746,0.00018704,2]
[368576460,1751213447574,-151.0,0.00018704,2]
[368576461,1751213447583,-151.0,0.00018704,2]
[368576462,1751213447593,-500.0,0.00018704,2]
[368576463,1751213447603,-151.0,0.00018704,2]
[368576464,1751213447612,-151.0,0.00018704,2]
[368576465,1751213447621,-151.0,0.00018704,2]
[368576466,1751213447631,-500.0,0.00018704,2]
[368576467,1751213447640,-151.0,0.00018704,2]
[368576468,1751213447650,-151.0,0.00018704,2]
[368576469,1751213447659,-500.0,0.00018704,2]
[368576470,1751213447669,-500.0,0.00018704,2]
[368576471,1751213447679,-151.0,0.00018731,2]
[368576472,1751213447688,-151.0,0.00018731,2]
[368576473,1751213447698,-151.0,0.00018731,2]
[368576474,1751213447707,-151.0,0.00018731,2]
[368576475,1751213447716,-151.31756435,0.00018731,2]
[368576476,1751213447725,-151.0,0.00018731,2]
[368576477,1751213447734,-500.0,0.00018731,2]
[368576478,1751213447744,-151.0,0.00018731,2]
[368576479,1751213447753,-500.0,0.00018731,2]
[368576480,1751213447763,-198.0,0.00018731,2]
[368576481,1751213447773,-500.0,0.00018731,2]
[368576482,1751213447782,-500.0,0.00018731,2]
[368576483,1751213447791,-151.0,0.00018759,2]
[368576484,1751213447801,-151.0,0.00018759,2]
[368576485,1751213447811,-151.0,0.00018759,2]
[368576486,1751213447820,-151.0,0.00018759,2]
[368576487,1751213447829,-500.0,0.00018759,2]
[368576488,1751213447838,-151.0,0.00018759,2]
[368576489,1751213447847,-500.0,0.00018759,2]
[368576490,1751213447856,-500.0,0.00018759,2]
[368576491,1751213447865,-500.0,0.00018759,2]
[368576492,1751213447875,-199.04573307,0.00018786,2]
[368576493,1751213447885,-151.0,0.00018786,2]
[368576494,1751213447896,-151.0,0.00018786,2]
[368576495,1751213447905,-151.0,0.00018786,2]
[368576496,1751213447915,-647.0,0.00018786,2]
[368576497,1751213447924,-198.0,0.00018786,2]
[368576498,1751213447933,-500.0,0.00018786,2]
[368576499,1751213447942,-500.0,0.00018786,2]
[368576500,1751213447952,-245.20146733,0.00018786,2]
[368576501,1751213447961,-619.38767944,0.00018794,2]
[368576502,1751213447971,-631.07978314,0.00018794,2]
[368576503,1751213447980,-256.97901756,0.00018794,2]
[368576504,1751213447989,-473.28126514,0.00018794,2]
[368576505,1751213447998,-500.0,0.00018794,2]
[368576506,1751213448007,-500.0,0.00018794,2]
[368576507,1751213448016,-500.0,0.00018794,2]
[368576508,1751213448026,-151.0,0.00018814,2]
[368576509,1751213448035,-153.93679524,0.00018814,2]
[368576510,1751213448044,-151.0,0.00018814,2]
[368576511,1751213448054,-500.0,0.00018814,2]
[368576512,1751213448064,-500.0,0.00018814,2]
[368576513,1751213448073,-218.05104576,0.00018841,2]
[368576514,1751213448083,-182.29925512,0.00018841,2]
[368576515,1751213448093,-175.93240191,0.00018841,2]
[368576516,1751213448102,-500.0,0.00018882,2]
[368576517,1751213448111,-500.0,0.00018882,2]
[368576518,1751213448121,-500.0,0.00018882,2]
[368576519,1751213448130,-500.0,0.00018882,2]
[368576520,1751213448140,-166.30513334,0.00018882,2]
[368576521,1751213448149,-467.22709532,0.00018882,2]
[368576522,1751213448159,-247.03038883,0.00018882,2]
[368576523,1751213448168,-500.0,0.00018882,2]
[368576524,1751213448177,-500.0,0.00018882,2]
[368576525,1751213448187,-500.0,0.00018882,2]
[368576526,1751213448197,-509.83488181,0.00018882,2]
[368576527,1751213448206,-500.0,0.00018882,2]
[368576528,1751213448216,-500.0,0.00018882,2]
[368576529,1751213448225,-500.72984294,0.00018882,2]
[368576530,1751213448234,-500.0,0.00018882,2]
[368576531,1751213448244,-500.0,0.00018882,2]
[368576532,1751213448253,-500.0,0.00018882,2]
[368576533,1751213448263,-500.76277456,0.00018882,2]
[368576534,1751213448273,-225.28814004,0.00018882,2]
[368576535,1751213448283,-151.0,0.000189,2]
[368576536,1751213448292,-151.0,0.000189,2]
[368576537,1751213448302,-6536.85938355,0.000189,2]
[368576538,1751213448312,-1378.85992708,0.000189,2]
[368576539,1751213448321,-157.14764055,0.00018926,2]
[368576540,1751213448331,-269.45721925,0.00018944,2]
[368576541,1751213448341,-386.66,0.00018944,2]
[368576542,1751213448351,-711.68,0.00018944,2]
[368576543,1751213448361,-417.14808937,0.00018944,2]
[368576544,1751213448370,-460.0,0.00018944,2]
[368576545,1751213448379,-770.46,0.00018944,2]
[368576546,1751213448388,-460.0,0.00018944,2]
[368576547,1751213448399,-460.0,0.00018944,2]
[368576548,1751213448409,-460.0,0.00018944,2]
[368576549,1751213448418,-3134.69,0.00018944,2]
[368576550,1751213448427,-579.16,0.00018944,2]
[368576551,1751213448436,-460.0,0.00018944,2]
[368576552,1751213448446,-204.91292009,0.00018944,2]
[368576553,1751213448455,-460.0,0.00018944,2]
[368576554,1751213448465,-500.0,0.00018945,2]
[368576555,1751213448474,-460.0,0.00018946,2]
[368576556,1751213448483,-460.0,0.00018946,2]
[368576557,1751213448492,-188.95990581,0.00018946,2]
[368576558,1751213448501,-460.0,0.00018946,2]
[368576559,1751213448510,-460.0,0.00018946,2]
[368576560,1751213448519,-460.0,0.00018946,2]
[368576561,1751213448529,-410.35596139,0.00018946,2]
[368576562,1751213448538,-460.0,0.00018946,2]
[368576564,1751213448547,-460.0,0.00018948,2]
[368576565,1751213448557,-460.0,0.00018948,2]
[368576566,1751213448567,-4547.62,0.00018948,2]
[368576567,1751213448577,-4813.95,0.00018948,2]
[368576568,1751213448588,-460.0,0.00018948,2]
[368576575,1751213448597,-990.53,0.00018948,2]
[368576577,1751213448739,-460.0,0.00018948,2]
[368576579,1751213448749,-460.0,0.00018948,2]
[368576581,1751213448759,-546.86,0.00018948,2]
[368576583,1751213448768,-460.0,0.00018948,2]
[368576585,1751213448777,-4925.02,0.00018948,2]
[368576586,1751213448786,-4462.53,0.00018948,2]
[368576588,1751213448795,-4832.15,0.00018948,2]
[368576590,1751213448805,-729.64,0.00018948,2]
[368576592,1751213448815,-460.0,0.00018948,2]
[368576594,1751213448824,-460.0,0.00018948,2]
[368576595,1751213448833,-2653.8,0.00018948,2]
[368576596,1751213448842,-460.0,0.00018948,2]
[368576597,1751213448851,-460.0,0.00018957,2]
[368576598,1751213448861,-460.0,0.00018957,2]
[368576599,1751213448871,-460.0,0.00018957,2]
[368576600,1751213448880,-460.0,0.00018957,2]
[368576601,1751213448893,-460.0,0.00018957,2]
[368576602,1751213448903,-285.55139076,0.00018957,2]
[368576603,1751213448913,-460.0,0.00018958,2]
[368576604,1751213448922,-460.0,0.00018958,2]
[368576605,1751213448933,-460.0,0.00018958,2]
[368576606,1751213448942,-460.0,0.00018958,2]
[368576607,1751213448952,-460.0,0.00018958,2]
[368576608,1751213448962,-460.0,0.00018958,2]
[368576609,1751213448974,-460.0,0.00018958,2]
[368576610,1751213448984,-260.0,0.00018958,2]
[368576611,1751213448994,-460.0,0.00018958,2]
[368576612,1751213449004,-460.0,0.00018958,2]
[368576613,1751213449014,-460.0,0.00018958,2]
[368576614,1751213449024,-460.0,0.00018958,2]
[368576615,1751213449034,-460.0,0.00018958,2]
[368576616,1751213449044,-707.53,0.00018958,2]
[368576617,1751213449053,-792.53,0.00018958,2]
[368576618,1751213449063,-2414.73,0.00018958,2]
[368576619,1751213449072,-646.3,0.00018958,2]
[368576620,1751213449082,-421.57183673,0.00018958,2]
[368576621,1751213449092,-550.0,0.00018958,2]
[368576622,1751213449102,-475.64,0.00018958,2]
[368576623,1751213449112,-460.0,0.00018958,2]
[368576624,1751213449122,-460.0,0.00018958,2]
[368576625,1751213449131,-620.0,0.00018958,2]
[368576626,1751213449141,-1064.11,0.00018958,2]
[368576627,1751213449150,-460.0,0.00018958,2]
[368576628,1751213449161,-1257.18,0.00018958,2]
[368576629,1751213449172,-460.0,0.00018958,2]
[368576630,1751213449181,-460.0,0.00018958,2]
[368576631,1751213449191,-460.0,0.00018958,2]
[368576632,1751213449201,-460.0,0.00018958,2]
[368576633,1751213449210,-460.0,0.00018958,2]
[368576634,1751213449220,-997.24,0.00018958,2]
[368576635,1751213449229,-460.0,0.00018958,2]
[368576636,1751213449239,-696.71,0.00018958,2]
[368576637,1751213449248,-460.0,0.00018958,2]
[368576638,1751213449257,-1514.83,0.00018958,2]
[368576639,1751213449266,-460.0,0.00018958,2]
[368576640,1751213449277,-460.0,0.00018958,2]
[368576641,1751213449286,-704.72,0.00018958,2]
[368576642,1751213449295,-460.0,0.00018958,2]
[368576643,1751213449304,-460.0,0.00018959,2]
[368576644,1751213449314,-460.0,0.00018959,2]
[368576645,1751213449325,-460.0,0.00018959,2]
[368576646,1751213449334,-460.0,0.00018959,2]
[368576647,1751213449343,-1715.34,0.00018959,2]
[368576648,1751213449352,-753.79,0.00018959,2]
[368576649,1751213449363,-594.48,0.00018959,2]
[368576650,1751213449372,-860.14,0.00018959,2]
[368576651,1751213449381,-460.0,0.00018959,2]
[368576652,1751213449391,-1152.83,0.00018959,2]
[368576653,1751213449401,-6011.46,0.00018959,2]
[368576654,1751213449410,-543.66,0.00018959,2]
[368576655,1751213449419,-460.0,0.0001896,2]
[368576656,1751213449429,-460.0,0.0001896,2]
[368576657,1751213449438,-460.0,0.0001896,2]
[368576658,1751213449448,-460.0,0.0001896,2]
[368576659,1751213449458,-460.0,0.00018963,2]
[368576660,1751213449467,-566.23,0.00018963,2]
[368576661,1751213449476,-460.0,0.00018963,2]
[368576662,1751213449486,-460.0,0.00018963,2]
[368576663,1751213449495,-460.0,0.00018963,2]
[368576664,1751213449505,-513.98,0.00018963,2]
[368576665,1751213449514,-497.57,0.00018963,2]
[368576666,1751213449524,-460.0,0.00018963,2]
[368576667,1751213449533,-460.0,0.00018963,2]
[368576668,1751213449543,-460.0,0.00018963,2]
[368576669,1751213449553,-460.0,0.00018963,2]
[368576670,1751213449564,-460.0,0.00018963,2]
[368576671,1751213449574,-638.1,0.00018963,2]
[368576672,1751213449583,-460.0,0.00018963,2]
[368576673,1751213449592,-913.1,0.00018963,2]
[368576674,1751213449602,-460.0,0.00018963,2]
[368576675,1751213449612,-460.0,0.00018963,2]
[368576676,1751213449621,-472.55,0.00018963,2]
[368576677,1751213449631,-934.56,0.00018963,2]
[368576678,1751213449640,-460.0,0.00018963,2]
[368576679,1751213449650,-460.0,0.00018963,2]
[368576680,1751213449660,-460.0,0.00018963,2]
[368576681,1751213449669,-460.0,0.00018963,2]
[368576682,1751213449679,-994.93,0.00018963,2]
[368576683,1751213449688,-788.47,0.00018963,2]
[368576684,1751213449698,-535.69,0.00018963,2]
[368576685,1751213449707,-460.0,0.00018963,2]
[368576686,1751213449717,-720.09,0.00018963,2]
[368576687,1751213449726,-460.0,0.00018963,2]
[368576688,1751213449736,-460.0,0.00018963,2]
[368576689,1751213449745,-732.67,0.00018963,2]
[368576690,1751213449755,-460.0,0.00018963,2]
[368576691,1751213449764,-460.0,0.00018963,2]
[368576692,1751213449773,-460.0,0.00018963,2]
[368576693,1751213449783,-3943.89,0.00018964,2]
[368576694,1751213449792,-749.97,0.00018964,2]
[368576695,1751213449802,-2273.88,0.00018964,2]
[368576696,1751213449811,-1592.72,0.00018964,2]
[368576697,1751213449821,-460.0,0.00018964,2]
[368576698,1751213449830,-1393.05,0.00018964,2]
[368576699,1751213449840,-6858.32,0.00018964,2]
[368576700,1751213449850,-2299.91,0.00018964,2]
[368576701,1751213449860,-1649.67,0.00018964,2]
[368576702,1751213449869,-460.0,0.00018964,2]
[368576703,1751213449878,-460.0,0.00018964,2]
[368576704,1751213449889,-460.0,0.00018965,2]
[368576705,1751213449899,-460.0,0.00018965,2]
[368576706,1751213449908,-460.0,0.00018965,2]
[368576707,1751213449917,-460.0,0.00018965,2]
[368576708,1751213449926,-460.0,0.00018965,2]
[368576709,1751213449935,-460.0,0.00018965,2]
[368576710,1751213449944,-460.0,0.00018965,2]
[368576711,1751213449953,-460.0,0.00018965,2]
[368576712,1751213449962,-501.84986204,0.00018974,2]
[368576713,1751213449972,-460.0,0.00018974,2]
[368576714,1751213449981,-460.0,0.00018974,2]
[368576715,1751213449990,-460.0,0.00018974,2]
[368576716,1751213449999,-460.0,0.00018974,2]
[368576717,1751213450009,-954.05,0.00018974,2]
[368576718,1751213450018,-460.0,0.00018974,2]
[368576719,1751213450027,-460.0,0.00018974,2]
[368576720,1751213450036,-460.0,0.00018974,2]
[368576721,1751213450045,-460.0,0.00018974,2]
[368576722,1751213450055,-844.34,0.00018974,2]
[368576723,1751213450064,-460.0,0.00018974,2]
[368576724,1751213450073,-1863.26,0.00018974,2]
[368576725,1751213450082,-460.0,0.00018974,2]
[368576726,1751213450092,-1075.67,0.00018974,2]
[368576727,1751213450101,-460.0,0.00018974,2]
[368576728,1751213450111,-1321.87,0.00018974,2]
[368576729,1751213450120,-460.0,0.00018974,2]
[368576730,1751213450130,-2266.93,0.00018974,2]
[368576731,1751213450141,-1689.29,0.00018974,2]
[368576732,1751213450151,-460.0,0.00018974,2]
[368576733,1751213450161,-632.62,0.00018974,2]
[368576734,1751213450171,-460.0,0.00018974,2]
[368576735,1751213450181,-460.0,0.00018976,2]
[368576736,1751213450191,-2416.46,0.00018976,2]
[368576737,1751213450202,-460.0,0.00018976,2]
[368576738,1751213450212,-460.0,0.00018976,2]
[368576739,1751213450221,-460.0,0.00018976,2]
[368576740,1751213450232,-460.0,0.00018976,2]
[368576741,1751213450243,-442.62483145,0.00018976,2]
[368576742,1751213450253,-460.0,0.00018976,2]
[368576743,1751213450263,-460.0,0.00018976,2]
[368576744,1751213450272,-500.0,0.00018979,2]
[368576745,1751213450281,-290.33249283,0.00018979,2]
[368576746,1751213450291,-500.0,0.00018979,2]
[368576747,1751213450300,-500.0,0.00018979,2]
[368576748,1751213450309,-230.0,0.00018979,2]
[368576749,1751213450318,-500.0,0.00018979,2]
[368576750,1751213450328,-25000.0,0.00018982,2]
[368576751,1751213450337,-5000.0,0.00018982,2]
[368576752,1751213450347,-500.0,0.00018985,2]
[368576753,1751213450356,-1958.56518753,0.00018986,2]
[368576754,1751213450366,-500.0,0.00019,2]
[368576755,1751213450375,-151.0,0.00019,2]
[368576756,1751213450384,-151.0,0.00019,2]
[368576757,1751213450393,-1003.12234392,0.00019021,2]
[368576758,1751213450402,-1000.0,0.00019021,2]
[368576759,1751213450412,-503.05538962,0.00019021,2]
[368576760,1751213450421,-1000.0,0.00019021,2]
[368576761,1751213450430,-1016.45136958,0.00019021,2]
[368576762,1751213450439,-1000.0,0.00019021,2]
[368576763,1751213450448,-500.0,0.00019021,2]
[368576764,1751213450457,-1000.0,0.00019021,2]
[368576765,1751213450467,-585.75362315,0.00019021,2]
[368576766,1751213450476,-904.66045675,0.00019021,2]
[368576767,1751213450485,-1000.0,0.00019021,2]
[368576768,1751213450494,-501.18341451,0.00019021,2]
[368576769,1751213450504,-1000.0,0.00019021,2]
[368576770,1751213450514,-1000.0,0.00019021,2]
[368576771,1751213450523,-1000.0,0.00019021,2]
[368576772,1751213450532,-500.68364037,0.00019021,2]
[368576773,1751213450541,-327.20861149,0.00019021,2]
[368576774,1751213450551,-1002.25919006,0.00019021,2]
[368576775,1751213450561,-500.56297751,0.00019021,2]
[368576776,1751213450570,-1000.0,0.00019021,2]
[368576777,1751213450579,-1000.0,0.00019021,2]
[368576778,1751213450589,-1000.0,0.00019021,2]
[368576779,1751213450599,-1000.0,0.00019021,2]
[368576780,1751213450608,-1002.29311935,0.00019021,2]
[368576781,1751213450618,-428.52617537,0.00019021,2]
[368576782,1751213450627,-501.56666616,0.00019021,2]
[368576783,1751213450637,-1000.0,0.00019021,2]
[368576784,1751213450646,-1243.64714367,0.00019023,2]
[368576785,1751213450656,-160.0,0.00019096,2]
[368576786,1751213450666,-847.31290578,0.00019096,2]
[368576787,1751213450676,-214.97967293,0.00019096,2]
[368576788,1751213450685,-160.0,0.00019096,2]
[368576789,1751213450695,-837.1293463,0.00019096,2]
[368576790,1751213450704,-12567.05932091,0.00019096,2]
[368576791,1751213450713,-160.0,0.00019096,2]
[368576792,1751213450723,-160.0,0.00019096,2]
[368576793,1751213450732,-213.82031328,0.00019096,2]
[368576794,1751213450741,-160.0,0.00019096,2]
[368576795,1751213450751,-230.30207649,0.00019096,2]
[368576796,1751213450760,-160.0,0.00019096,2]
[368576797,1751213450769,-160.0,0.00019096,2]
[368576798,1751213450779,-160.0,0.00019096,2]
[368576799,1751213450789,-151.0,0.000191,2]
[368576800,1751213450799,-151.0,0.000191,2]
[368576801,1751213450809,-6536.85938346,0.00019107,2]
[368576802,1751213450820,-500.0,0.00019164,2]
[368576803,1751213450829,-277.95544695,0.00019178,2]
[368576804,1751213450840,-55349.0902884,0.00019178,2]
[368576805,1751213450850,-935.351129,0.00019178,2]
[368576806,1751213450860,-407.02171025,0.00019183,2]
[368576807,1751213450869,-151.0,0.00019184,2]
[368576808,1751213450879,-151.0,0.00019184,2]
[368576809,1751213450889,-151.0,0.00019184,2]
[368576810,1751213450901,-151.0,0.00019184,2]
[368576811,1751213450910,-151.0,0.00019184,2]
[368576812,1751213450920,-371.228903,0.00019184,2]
[368576813,1751213450929,-371.228903,0.00019184,2]
[368576814,1751213450938,-151.0,0.00019184,2]
[368576815,1751213450948,-151.0,0.000192,2]
[368576816,1751213450957,-151.0,0.000192,2]